bitfinex-derivatives/quotes_SOLF0:USTF0_20250318
["timestamp","ask_amount","ask_price","bid_price","bid_amount"]
[1742311506248,0.05634239,122.74,122.72,0.05522718]
[1742311506437,8.20484239,122.74,122.72,0.05522718]
[1742311506841,0.05634239,122.74,122.72,0.05522718]
[1742311507048,8.1486,122.73,122.72,0.05522718]
[1742311508950,21.57190934,122.73,122.7,31.14]
[1742311509445,8.1496,122.72,122.7,31.14]
[1742311509645,0.05634239,122.74,122.7,31.14]
[1742311510052,0.05634239,122.74,122.71,8.1499]
[1742311510350,0.05634239,122.74,122.71,0.05586065]
[1742311510549,0.05634239,122.74,122.72,8.1489]
[1742311510952,0.05634239,122.74,122.71,8.20536065]
[1742311512252,0.05634239,122.74,122.71,0.05586065]
[1742311512553,0.00194239,122.74,122.71,290.66776999]
[1742311512748,0.00194239,122.74,122.71,292.67516999]
[1742311513752,0.00194239,122.74,122.71,290.66776999]
[1742311514152,0.00194239,122.74,122.73,8.1486]
[1742311514348,0.00194239,122.74,122.73,39.2686]
[1742311514553,0.00194239,122.74,122.73,31.12]
[1742311515857,0.00194239,122.74,122.73,39.2686]
[1742311516045,0.00194239,122.74,122.73,31.12]
[1742311517452,0.00194239,122.74,122.73,39.2686]
[1742311519060,8.1442,122.8,122.76,8.1462]
[1742311519257,6.2625,122.81,122.77,31.1]
[1742311519559,6.2625,122.81,122.77,39.2456]
[1742311519762,6.2625,122.81,122.77,31.1]
[1742311520259,0.05975254,122.8,122.78,0.05695125]
[1742311521259,8.20385254,122.8,122.78,0.05695125]
[1742311521459,0.05975254,122.8,122.78,0.05695125]
[1742311521653,8.20405254,122.8,122.78,0.05695125]
[1742311522054,0.05975254,122.8,122.78,0.05695125]
[1742311523063,0.05975254,122.8,122.79,8.1446]
[1742311523454,0.05975254,122.8,122.78,268.95695125]
[1742311525463,0.05975254,122.8,122.79,8.1446]
[1742311525666,0.05975254,122.8,122.78,268.95695125]
[1742311526356,0.05975254,122.8,122.79,8.1446]
[1742311528261,0.05975254,122.8,122.78,277.10185125]
[1742311528761,0.05975254,122.8,122.79,8.1446]
[1742311529367,6.3703,122.85,122.84,8.1413]
[1742311529663,52.65190934,122.89,122.82,31.08]
[1742311529857,8.1394,122.87,122.83,31.08]
[1742311530262,8.1397,122.87,122.83,31.08]
[1742311530459,6.3674,122.88,122.83,39.2214]
[1742311530662,0.0617095,122.86,122.84,0.05681656]
[1742311531567,8.2017095,122.86,122.84,0.05681656]
[1742311531767,0.0617095,122.86,122.84,0.05681656]
[1742311531960,21.57190934,122.85,122.8,31.08]
[1742311532165,8.1433,122.82,122.78,308.1249]
[1742311533068,8.19824172,122.81,122.79,0.05718639]
[1742311533260,0.05494172,122.81,122.79,0.05718639]
[1742311534864,8.1439,122.8,122.79,0.05718639]
[1742311535669,0.05494172,122.81,122.76,8.1463]
[1742311536170,8.1449,122.79,122.76,8.1463]
[1742311536469,8.1449,122.79,122.77,8.1457]
[1742311536670,8.1443,122.8,122.77,8.1457]
[1742311536969,0.05985608,122.79,122.77,0.05875614]
[1742311537470,8.20445608,122.79,122.77,0.05875614]
[1742311538671,8.1453,122.78,122.77,0.05875614]
[1742311538870,0.05985608,122.79,122.77,0.05875614]
[1742311539267,52.69176542,122.79,122.74,268.76]
[1742311539875,8.1466,122.76,122.74,268.76]
[1742311540275,52.63190934,122.79,122.74,268.76]
[1742311540474,8.19955611,122.76,122.74,268.81710724]
[1742311541178,0.05245611,122.76,122.74,268.81710724]
[1742311541976,31.11245611,122.76,122.71,8.1496]
[1742311542170,31.06,122.76,122.71,8.1496]
[1742311542372,31.06,122.76,122.72,8.1491]
[1742311542769,39.2072,122.76,122.72,8.1491]
[1742311542971,31.06,122.76,122.71,8.1495]
[1742311543272,0.05257392,122.75,122.73,0.06150176]
[1742311543575,8.20027392,122.75,122.73,0.06150176]
[1742311543778,0.05257392,122.75,122.73,0.06150176]
[1742311544272,8.1479,122.74,122.73,0.06150176]
[1742311545577,2.22577392,122.75,122.73,0.06150176]
[1742311545779,0.05257392,122.75,122.73,0.06150176]
[1742311546975,8.19987392,122.75,122.73,0.06150176]
[1742311547278,0.05257392,122.75,122.73,0.06150176]
[1742311547579,0.05257392,122.75,122.73,8.20980176]
[1742311548680,0.05257392,122.75,122.74,8.1479]
[1742311550273,0.05257392,122.75,122.74,39.2279]
[1742311551075,7.392e-05,122.75,122.74,39.2279]
[1742311551480,7.392e-05,122.75,122.74,47.3679]
[1742311551879,7.392e-05,122.75,122.74,39.2279]
[1742311553270,10.3461,122.82,122.74,39.22]
[1742311553271,2.2032,122.82,122.74,39.22]
[1742311553475,2.2032,122.82,122.76,21.57190934]
[1742311553673,2.2032,122.82,122.77,31.08]
[1742311553876,2.0376,122.83,122.82,8.1426]
[1742311554187,1.998,122.84,122.82,8.1426]
[1742311554485,2.05541212,122.84,122.82,8.1426]
[1742311555476,2.05541212,122.84,122.81,0.05313741]
[1742311555883,10.19701212,122.84,122.81,0.05313741]
[1742311556185,2.05541212,122.84,122.81,0.05313741]
[1742311556488,21.57190934,122.83,122.81,0.05313741]
[1742311556782,21.57190934,122.83,122.78,39.2049]
[1742311557186,8.1429,122.82,122.78,31.06]
[1742311557385,8.1429,122.82,122.79,8.1442]
[1742311557790,8.20159449,122.82,122.79,8.19887511]
[1742311557979,0.05869449,122.82,122.79,8.19887511]
[1742311558689,0.05869449,122.82,122.8,8.1438]
[1742311559287,0.05869449,122.82,122.79,0.05467511]
[1742311561491,0.05869449,122.82,122.81,8.1433]
[1742311561687,0.05869449,122.82,122.81,39.2033]
[1742311566089,9.449e-05,122.82,122.81,307.9433]
[1742311570291,9.449e-05,122.82,122.81,276.8833]
[1742311570489,9.449e-05,122.82,122.81,307.9433]
[1742311570691,9.449e-05,122.82,122.81,299.8]
[1742311571094,9.449e-05,122.82,122.81,268.74]
[1742311571996,9.449e-05,122.82,122.81,276.8833]
[1742311573299,9.449e-05,122.82,122.81,268.74]
[1742311574296,9.449e-05,122.82,122.81,276.8833]
[1742311576798,9.449e-05,122.82,122.81,268.74]
[1742311577200,8.14269449,122.82,122.81,268.74]
[1742311577601,9.449e-05,122.82,122.79,31.11467511]
[1742311581408,9.449e-05,122.82,122.81,13.7459591]
[1742311581600,9.449e-05,122.82,122.81,21.8892591]
[1742311584903,21.8842591,122.89,122.86,8.1397]
[1742311585108,21.8842591,122.89,122.79,49.53207511]
[1742311585109,8.1387,122.88,122.85,31.04]
[1742311585312,56.85927804,122.9,122.83,299.72]
[1742311585510,8.1392,122.88,122.83,299.72]
[1742311586105,0.05711004,122.87,122.85,8.1406]
[1742311586706,8.19641004,122.87,122.84,8.19992472]
[1742311586909,0.05711004,122.87,122.84,0.05902472]
[1742311587610,8.19661004,122.87,122.84,8.20002472]
[1742311588111,0.05711004,122.87,122.85,8.1405]
[1742311589607,0.05711004,122.87,122.86,8.1399]
[1742311590211,0.05711004,122.87,122.84,0.05902472]
[1742311590212,0.05711004,122.87,122.85,8.1403]
[1742311592407,0.05711004,122.87,122.84,0.05902472]
[1742311592615,0.05711004,122.87,122.83,268.68]
[1742311592810,8.19671004,122.87,122.83,268.68]
[1742311593004,0.05711004,122.87,122.84,8.141]
[1742311593508,8.1402,122.86,122.84,8.141]
[1742311593709,8.1402,122.86,122.84,8.19929093]
[1742311593914,0.05711004,122.87,122.84,0.05829093]
[1742311594614,8.1406,122.85,122.84,0.05829093]
[1742311594816,33.2389,122.86,122.82,8.1424]
[1742311595009,2.1878,122.85,122.82,8.1424]
[1742311595210,8.1415,122.84,122.82,8.1424]
[1742311595911,8.19603758,122.84,122.82,8.19459672]
[1742311596410,0.05453758,122.84,122.82,8.19459672]
[1742311596614,0.05453758,122.84,122.82,0.05219672]
[1742311597115,8.1419,122.83,122.82,0.05219672]
[1742311597417,21.46827804,122.83,122.79,268.66]
[1742311597607,8.1429,122.82,122.79,276.8041]
[1742311597803,21.46827804,122.83,122.79,276.8041]
[1742311598007,21.46827804,122.83,122.79,268.66]
[1742311598206,8.1429,122.82,122.79,276.8041]
[1742311598921,8.1429,122.82,122.8,8.1439]
[1742311599113,0.05453758,122.84,122.81,31.04]
[1742311599512,8.19603758,122.84,122.81,31.04]
[1742311599913,0.05453758,122.84,122.81,31.04]
[1742311600115,8.19613758,122.84,122.81,39.1829]
[1742311600315,8.19613758,122.84,122.81,31.04]
[1742311601115,8.1421,122.83,122.79,268.66]
[1742311601316,8.1421,122.83,122.8,31.04]
[1742311601622,0.05453758,122.84,122.8,39.1836]
[1742311601816,8.1421,122.83,122.8,39.1836]
[1742311602422,8.1421,122.83,122.81,8.1432]
[1742311602620,8.1421,122.83,122.8,31.04]
[1742311602820,8.1421,122.83,122.8,39.1836]
[1742311604824,8.1421,122.83,122.81,8.1431]
[1742311605024,8.19613758,122.84,122.81,8.1431]
[1742311605220,0.05453758,122.84,122.8,31.04]
[1742311606026,0.05453758,122.84,122.82,8.1423]
[1742311606525,8.19613758,122.84,122.81,8.1429]
[1742311606725,0.05453758,122.84,122.8,31.04]
[1742311607120,0.05453758,122.84,122.8,44.78737552]
[1742311607422,0.05453758,122.84,122.81,8.1431]
[1742311607814,0.05453758,122.84,122.8,44.78737552]
[1742311608116,0.05453758,122.84,122.82,8.1424]
[1742311609425,21.9433131,122.84,122.81,8.143]
[1742311609624,13.8019131,122.84,122.8,31.04]
[1742311610020,13.74737552,122.82,122.8,31.04]
[1742311610216,13.74737552,122.82,122.79,268.66]
[1742311610422,21.89027552,122.82,122.79,276.8043]
[1742311610617,13.74737552,122.82,122.79,268.66]
[1742311610922,0.05453758,122.84,122.82,8.142]
[1742311611121,0.05453758,122.84,122.81,31.04]
[1742311611526,0.05453758,122.84,122.82,8.1426]
[1742311611719,0.05453758,122.84,122.81,31.04]
[1742311612228,0.05453758,122.84,122.83,8.1419]
[1742311612427,0.05453758,122.84,122.81,31.04]
[1742311612927,0.05453758,122.84,122.83,8.1419]
[1742311615128,0.05453758,122.84,122.82,8.1423]
[1742311617028,13.8019131,122.84,122.81,31.04]
[1742311617218,13.74737552,122.83,122.81,31.04]
[1742311618025,13.74737552,122.83,122.79,299.68]
[1742311618230,13.74737552,122.82,122.79,268.66]
[1742311618427,13.74737552,122.81,122.79,268.66]
[1742311618827,21.89097552,122.81,122.79,268.66]
[1742311619132,21.94808429,122.81,122.79,268.66]
[1742311619528,8.20070877,122.81,122.79,276.8045]
[1742311620325,8.20070877,122.81,122.79,268.66]
[1742311620833,8.1439,122.8,122.79,268.66]
[1742311621134,8.1439,122.8,122.76,13.74737552]
[1742311621135,39.1639,122.8,122.76,13.74737552]
[1742311621330,0.05710877,122.81,122.76,13.74737552]
[1742311621932,0.05710877,122.81,122.79,8.1443]
[1742311622334,0.05710877,122.81,122.76,13.74737552]
[1742311622531,13.74737552,122.79,122.75,268.72]
[1742311622834,6.87368776,122.77,122.75,268.72]
[1742311623138,15.01968776,122.77,122.75,276.8669]
[1742311623940,8.146,122.77,122.75,276.8669]
[1742311626330,13.80845685,122.78,122.75,268.72]
[1742311626528,0.06108133,122.78,122.75,268.72]
[1742311627031,0.06108133,122.78,122.77,8.1459]
[1742311628537,0.06108133,122.78,122.75,268.72]
[1742311628834,21.95405685,122.78,122.75,268.72]
[1742311629136,21.95405685,122.78,122.75,276.8668]
[1742311629532,13.80845685,122.78,122.75,276.8668]
[1742311629933,21.95405685,122.78,122.76,8.1465]
[1742311630134,0.06108133,122.78,122.75,268.72]
[1742311630538,0.06108133,122.78,122.77,8.1459]
[1742311635638,0.06108133,122.78,122.77,21.89327552]
[1742311635838,13.74737552,122.83,122.77,13.74737552]
[1742311636039,23.89957552,122.84,122.79,13.74737552]
[1742311636230,23.89957552,122.84,122.79,44.76737552]
[1742311636432,15.75807552,122.84,122.82,8.1426]
[1742311636632,13.74737552,122.84,122.82,8.1426]
[1742311637045,13.804184,122.84,122.82,8.20248027]
[1742311637442,0.05680848,122.84,122.82,8.20248027]
[1742311638544,13.804184,122.84,122.82,0.05988027]
[1742311639342,13.804184,122.84,122.82,8.20248027]
[1742311639739,13.804184,122.84,122.82,0.05988027]
[1742311640339,0.05680848,122.84,122.82,0.05988027]
[1742311640540,0.05680848,122.84,122.82,8.20238027]
[1742311640731,0.05680848,122.84,122.82,0.05988027]
[1742311640934,8.19820848,122.84,122.82,0.05988027]
[1742311641334,0.05680848,122.84,122.82,0.05988027]
[1742311642040,0.05680848,122.84,122.82,8.20248027]
[1742311642241,0.05680848,122.84,122.82,0.05988027]
[1742311642535,0.05680848,122.84,122.83,8.1419]
[1742311643842,0.05680848,122.84,122.83,21.88927552]
[1742311644639,24.00347552,122.89,122.86,8.1395]
[1742311644640,2.1178,122.89,122.86,8.1395]
[1742311645238,2.1178,122.89,122.85,52.90767552]
[1742311645439,15.86517552,122.89,122.85,31.02]
[1742311645636,8.1388,122.88,122.85,31.02]
[1742311645833,13.74737552,122.87,122.86,0.05452476]
[1742311646137,21.88697552,122.87,122.83,52.90897552]
[1742311646337,21.88697552,122.87,122.85,0.06049511]
[1742311647138,21.94552433,122.88,122.85,0.06049511]
[1742311647341,0.05924881,122.88,122.85,0.06049511]
[1742311647537,0.05924881,122.88,122.85,13.80787063]
[1742311649045,0.05924881,122.88,122.85,21.94817063]
[1742311649439,0.05924881,122.88,122.85,0.06049511]
[1742311649643,13.74737552,122.87,122.85,0.06049511]
[1742311650151,8.1399,122.86,122.85,0.06049511]
[1742311652543,8.1396,122.87,122.85,0.06049511]
[1742311652743,0.05924881,122.88,122.85,0.06049511]
[1742311653245,8.19814881,122.88,122.85,8.20079511]
[1742311653447,0.05924881,122.88,122.85,8.20079511]
[1742311653952,0.05924881,122.88,122.86,8.1398]
[1742311654246,0.05924881,122.88,122.85,0.06049511]
[1742311654436,8.19784881,122.88,122.85,8.20079511]
[1742311655439,8.1395,122.87,122.85,0.06049511]
[1742311656450,8.19824881,122.88,122.85,8.20109511]
[1742311657146,0.05924881,122.88,122.85,8.20109511]
[1742311657345,0.05924881,122.88,122.85,0.06049511]
[1742311657744,8.19844881,122.88,122.85,0.06049511]
[1742311658551,8.19844881,122.88,122.85,8.20099511]
[1742311659652,0.05924881,122.88,122.86,8.1398]
[1742311660549,0.05924881,122.88,122.85,0.06049511]
[1742311660742,0.05924881,122.88,122.86,31.0]
[1742311661143,0.05924881,122.88,122.87,276.7793]
[1742311661348,25.5549362,122.95,122.87,268.64]
[1742311661653,8.1359,122.93,122.89,8.1375]
[1742311661852,8.1359,122.93,122.89,39.1375]
[1742311662454,8.19867693,122.92,122.9,0.05941964]
[1742311662650,0.06257693,122.92,122.9,0.05941964]
[1742311663061,8.1366,122.91,122.9,0.05941964]
[1742311663748,8.19897693,122.92,122.9,0.05941964]
[1742311664157,8.1366,122.91,122.9,0.05941964]
[1742311664858,0.06257693,122.92,122.9,0.05941964]
[1742311665356,8.19887693,122.92,122.9,31.03941964]
[1742311666155,0.06257693,122.92,122.9,39.17671964]
[1742311666359,0.06257693,122.92,122.9,31.03941964]
[1742311667566,8.19897693,122.92,122.9,39.17651964]
[1742311668063,0.06257693,122.92,122.9,39.17651964]
[1742311668263,0.06257693,122.92,122.91,8.1366]
[1742311668463,0.06257693,122.92,122.9,31.03941964]
[1742311668664,0.06257693,122.92,122.9,39.17641964]
[1742311668864,0.06257693,122.92,122.9,31.03941964]
[1742311669371,0.06257693,122.92,122.9,39.17631964]
[1742311669567,8.19867693,122.92,122.9,39.17631964]
[1742311669770,0.06257693,122.92,122.91,8.1366]
[1742311670072,0.06257693,122.92,122.9,31.03941964]
[1742311670270,0.06257693,122.92,122.9,39.17641964]
[1742311671071,0.06257693,122.92,122.9,0.05941964]
[1742311671072,8.1366,122.91,122.9,0.05941964]
[1742311672272,0.06257693,122.92,122.87,276.7786]
[1742311672273,8.1385,122.89,122.87,268.64]
[1742311672471,8.1385,122.89,122.87,299.62]
[1742311672675,21.4723362,122.91,122.87,268.64]
[1742311672872,21.4723362,122.89,122.82,268.56]
[1742311673074,13.74372142,122.87,122.82,282.30372142]
[1742311673369,8.1397,122.87,122.84,8.1408]
[1742311673578,0.06049096,122.86,122.84,8.1408]
[1742311673771,0.06049096,122.86,122.83,13.80607616]
[1742311673970,0.06049096,122.86,122.84,8.1413]
[1742311674168,0.06049096,122.86,122.84,30.98]
[1742311674376,0.06049096,122.86,122.83,13.80607616]
[1742311674672,13.80421238,122.86,122.83,0.06235474]
[1742311674866,13.74372142,122.85,122.83,0.06235474]
[1742311675070,21.88462142,122.85,122.83,0.06235474]
[1742311675471,0.06049096,122.86,122.83,0.06235474]
[1742311675677,8.1413,122.84,122.83,0.06235474]
[1742311679077,39.1213,122.84,122.83,0.06235474]
[1742311681375,30.98,122.84,122.83,0.06235474]
[1742311682177,39.1213,122.84,122.83,0.06235474]
[1742311682875,8.1427,122.82,122.79,8.1442]
[1742311683081,8.1427,122.82,122.78,268.58]
[1742311683481,52.45717854,122.84,122.78,268.58]
[1742311683781,52.45717854,122.84,122.79,8.1443]
[1742311683977,0.06035816,122.82,122.8,0.05559946]
[1742311684382,0.06035816,122.82,122.8,8.19939946]
[1742311684980,0.06035816,122.82,122.8,0.05559946]
[1742311685284,8.1433,122.81,122.8,0.05559946]
[1742311686783,8.20325816,122.82,122.8,0.05559946]
[1742311687582,8.1433,122.81,122.8,0.05559946]
[1742311688085,8.20335816,122.82,122.8,0.05559946]
[1742311688285,0.06035816,122.82,122.8,0.05559946]
[1742311688787,0.06035816,122.82,122.81,8.1433]
[1742311691785,0.06035816,122.82,122.8,8.19919946]
[1742311692185,0.06035816,122.82,122.8,0.05559946]
[1742311692586,0.06035816,122.82,122.81,8.1433]
[1742311697483,0.06035816,122.82,122.81,21.89024078]
[1742311697789,13.74694078,122.88,122.84,8.1411]
[1742311697989,13.74694078,122.88,122.83,13.74694078]
[1742311698191,13.74694078,122.88,122.83,30.98]
[1742311698489,33.1037,122.89,122.83,30.98]
[1742311698490,8.1402,122.86,122.83,30.98]
[1742311698685,13.74694078,122.86,122.83,30.98]
[1742311698889,13.80918725,122.86,122.83,0.06007592]
[1742311699089,8.1408,122.85,122.83,0.06007592]
[1742311699284,44.78918725,122.86,122.83,0.06007592]
[1742311699591,21.88794078,122.85,122.83,0.06007592]
[1742311700090,8.1413,122.84,122.83,0.06007592]
[1742311700392,13.74694078,122.84,122.79,44.72694078]
[1742311700587,13.74694078,122.83,122.79,30.98]
[1742311700786,21.88934078,122.83,122.8,8.1436]
[1742311700986,13.74694078,122.83,122.78,313.30694078]
[1742311701189,13.74694078,122.82,122.78,268.58]
[1742311701588,0.05246191,122.81,122.79,0.0558817]
[1742311701792,0.05246191,122.81,122.79,8.2001817]
[1742311702190,0.05246191,122.81,122.79,0.0558817]
[1742311702393,0.05246191,122.81,122.8,8.1439]
[1742311702993,0.05246191,122.81,122.79,8.2000817]
[1742311703698,8.19596191,122.81,122.79,8.2000817]
[1742311703897,13.79940269,122.81,122.79,0.0558817]
[1742311704398,8.1439,122.8,122.79,0.0558817]
[1742311704695,8.19606191,122.81,122.79,8.2002817]
[1742311704892,0.05246191,122.81,122.79,8.2002817]
[1742311705094,0.05246191,122.81,122.79,0.0558817]
[1742311705291,0.05246191,122.81,122.8,8.1439]
[1742311710493,0.05246191,122.81,122.79,0.0558817]
[1742311711002,13.79940269,122.81,122.79,0.0558817]
[1742311711501,21.94290269,122.81,122.79,8.2001817]
[1742311711894,8.19596191,122.81,122.79,8.2001817]
[1742311712106,0.05246191,122.81,122.8,8.1439]
[1742311713801,8.19606191,122.81,122.79,8.2001817]
[1742311714005,0.05246191,122.81,122.79,0.0558817]
[1742311714404,8.19596191,122.81,122.79,8.2001817]
[1742311714601,0.05246191,122.81,122.79,0.0558817]
[1742311715005,8.19606191,122.81,122.79,8.2001817]
[1742311715701,8.19606191,122.81,122.8,8.1439]
[1742311715898,8.19606191,122.81,122.79,0.0558817]
[1742311716300,8.19606191,122.81,122.79,8.2000817]
[1742311716496,8.1439,122.8,122.79,0.0558817]
[1742311717697,8.1451,122.79,122.76,8.1461]
[1742311717897,8.1451,122.79,122.75,13.74694078]
[1742311718305,52.85124078,122.8,122.78,8.1453]
[1742311718507,13.74694078,122.81,122.76,13.74694078]
[1742311718810,46.79934078,122.82,122.79,8.1441]
[1742311719004,0.05558977,122.8,122.79,8.1441]
[1742311719203,13.74694078,122.83,122.78,13.74694078]
[1742311719402,0.05829499,122.81,122.78,13.74694078]
[1742311719599,0.05829499,122.81,122.8,8.1436]
[1742311720604,0.05829499,122.81,122.79,21.89114078]
[1742311720808,0.05829499,122.81,122.79,8.1442]
[1742311721310,0.05829499,122.81,122.8,8.1439]
[1742311722109,0.05829499,122.81,122.79,8.1443]
[1742311722304,0.05829499,122.81,122.78,268.74]
[1742311722611,0.05829499,122.81,122.79,8.1441]
[1742311722811,0.05829499,122.81,122.78,268.74]
[1742311723212,0.05829499,122.81,122.8,8.1439]
[1742311724308,0.05829499,122.81,122.78,268.74]
[1742311724508,44.76523577,122.81,122.78,268.74]
[1742311724812,44.76523577,122.81,122.79,8.1446]
[1742311725217,44.76523577,122.81,122.78,268.74]
[1742311725413,8.1439,122.8,122.78,268.74]
[1742311725608,44.76523577,122.81,122.78,268.74]
[1742311726813,52.90883577,122.81,122.79,8.1446]
[1742311728313,44.76523577,122.81,122.8,8.1439]
[1742311728518,31.01829499,122.81,122.8,8.1439]
[1742311730019,0.05829499,122.81,122.8,8.1439]
[1742311734023,0.05829499,122.81,122.8,21.89084078]
[1742311734623,44.70694078,122.87,122.8,13.74694078]
[1742311734824,13.74694078,122.88,122.83,13.74694078]
[1742311735023,44.70694078,122.88,122.86,8.1397]
[1742311735223,15.96234078,122.89,122.84,13.74694078]
[1742311735424,33.1754,122.89,122.85,44.70694078]
[1742311735625,0.05732035,122.88,122.86,13.80523577]
[1742311735825,0.05732035,122.88,122.87,13.74694078]
[1742311736419,0.05732035,122.88,122.87,21.88624078]
[1742311740423,0.05732035,122.88,122.86,13.80523577]
[1742311740727,0.05732035,122.88,122.87,13.74694078]
[1742311740924,0.05732035,122.88,122.87,8.1393]
[1742311741125,0.05732035,122.88,122.87,21.88624078]
[1742311742724,0.05732035,122.88,122.87,8.1393]
[1742311743429,0.05732035,122.88,122.86,21.94493577]
[1742311743630,0.05732035,122.88,122.86,13.80523577]
[1742311743827,0.05732035,122.88,122.86,0.05829499]
[1742311744524,8.19632035,122.88,122.86,0.05829499]
[1742311744929,8.1393,122.87,122.86,0.05829499]
[1742311745723,21.88624078,122.87,122.86,0.05829499]
[1742311745933,52.82624078,122.87,122.86,0.05829499]
[1742311747334,39.0793,122.87,122.86,0.05829499]
[1742311747743,52.82624078,122.87,122.86,0.05829499]
[1742311750043,44.68694078,122.87,122.86,0.05829499]
[1742311750236,30.94,122.87,122.86,0.05829499]
[1742311750432,8.19622035,122.88,122.86,0.05829499]
[1742311751145,0.05732035,122.88,122.86,0.05829499]
[1742311751742,0.05732035,122.88,122.87,8.1393]
[1742311751938,0.05732035,122.88,122.86,0.05829499]
[1742311752341,0.05732035,122.88,122.87,8.1393]
[1742311753345,0.05732035,122.88,122.87,21.88624078]
[1742311753942,0.05732035,122.88,122.87,8.1393]
[1742311755345,0.05732035,122.88,122.86,8.19799499]
[1742311755547,0.05732035,122.88,122.86,0.05829499]
[1742311756445,8.19632035,122.88,122.86,0.05829499]
[1742311756940,8.1393,122.87,122.86,0.05829499]
[1742311757644,21.88624078,122.87,122.86,0.05829499]
[1742311758944,8.1406,122.86,122.84,268.74]
[1742311759541,17.89054078,122.87,122.84,268.74]
[1742311759751,44.66694078,122.86,122.82,8.1422]
[1742311760246,8.1413,122.84,122.82,8.1422]
[1742311760443,8.1413,122.84,122.81,8.1429]
[1742311760647,8.1413,122.84,122.8,313.26694078]
[1742311760848,13.80503936,122.85,122.8,313.26694078]
[1742311761150,13.74694078,122.81,122.74,13.74694078]
[1742311761348,28.5936,122.87,122.67,11.18598763]
[1742311761349,13.74694078,122.75,122.67,11.18598763]
[1742311761544,13.74694078,122.74,122.71,8.1495]
[1742311761746,0.05857496,122.72,122.71,8.1495]
[1742311761942,0.05857496,122.72,122.67,11.18598763]
[1742311762148,13.80551574,122.72,122.68,39.0716]
[1742311762947,13.74694078,122.71,122.67,8.1523]
[1742311763149,30.97857496,122.72,122.67,8.1523]
[1742311763349,30.97857496,122.72,122.68,8.1518]
[1742311763548,30.97857496,122.72,122.66,30.92]
[1742311763549,30.97857496,122.72,122.66,52.44951028]
[1742311764155,30.97857496,122.72,122.68,8.1515]
[1742311764945,30.97857496,122.72,122.67,8.1522]
[1742311765152,30.97857496,122.72,122.66,30.94]
[1742311765547,39.12837496,122.72,122.66,39.0929]
[1742311765747,8.20837496,122.72,122.66,39.0929]
[1742311765955,30.94,122.71,122.66,30.94]
[1742311766157,30.94,122.71,122.65,299.56]
[1742311766455,30.94,122.71,122.66,8.1529]
[1742311766747,0.05234932,122.69,122.65,299.56]
[1742311767053,0.05234932,122.69,122.67,8.1522]
[1742311769552,0.05234932,122.69,122.65,299.56]
[1742311770657,30.96,122.68,122.65,268.62]
[1742311770858,33.182,122.68,122.65,268.62]
[1742311771050,33.182,122.68,122.65,265.2862]
[1742311771252,4.2878,122.67,122.63,8.1547]
[1742311771457,12.4405,122.67,122.61,268.84]
[1742311771754,0.05388952,122.66,122.61,268.84]
[1742311771952,30.94,122.65,122.61,268.84]
[1742311773060,30.94,122.65,122.63,8.1548]
[1742311773262,30.94,122.65,122.61,268.84]
[1742311773761,30.94,122.65,122.64,8.1545]
[1742311775464,30.94,122.65,122.63,8.1549]
[1742311776163,30.94,122.65,122.62,8.1556]
[1742311776759,39.0942,122.65,122.61,276.9962]
[1742311776956,30.94,122.65,122.61,268.84]
[1742311777362,8.1549,122.64,122.61,276.9965]
[1742311777965,30.94,122.65,122.61,268.84]
[1742311778666,0.05388952,122.66,122.64,8.1542]
[1742311779769,8.20718952,122.66,122.64,8.1542]
[1742311780671,8.154,122.65,122.63,8.1549]
[1742311780862,0.05388952,122.66,122.63,8.1549]
[1742311781172,8.20738952,122.66,122.63,8.1549]
[1742311781466,0.05388952,122.66,122.62,8.1556]
[1742311781662,8.1542,122.65,122.62,8.1556]
[1742311781968,8.1542,122.65,122.63,8.155]
[1742311782170,0.05388952,122.66,122.63,8.155]
[1742311782471,8.20758952,122.66,122.63,8.155]
[1742311782671,0.05388952,122.66,122.63,8.155]
[1742311783265,0.05388952,122.66,122.61,268.84]
[1742311783470,21.52951028,122.65,122.61,268.84]
[1742311783666,30.96,122.64,122.61,268.84]
[1742311784069,39.1149,122.64,122.61,276.9962]
[1742311784767,30.96,122.64,122.61,268.84]
[1742311785274,30.96,122.64,122.63,8.1552]
[1742311786076,0.05388952,122.66,122.61,268.84]
[1742311786871,0.05388952,122.66,122.65,8.1539]
[1742311791474,0.05388952,122.66,122.65,39.1139]